Cogmind - Beta 16 @@@ ROGUE MODE // 2025.11.04 @ 03:58:59 Player: Demo Result: Destroyed by Enhanced Grunt with Neutron Cannon Performance ------------- Evolutions (3) 1500 Regions Visited (8) 1600 Robots Destroyed (49) 245 Value Destroyed (1466) 1466 Prototype IDs (216) 4320 Alien Tech Used (0) 0 Bonus (4134) 4134 TOTAL SCORE: 13265 Bonus ------- Pacifist 834 Met Data Miner 300 Used Data Conduit 3000 Cogmind --------- Core Integrity 0/700 Matter 175/300 Energy 10/100 System Corruption 6% Temperature Cool (0) Movement Core (500) Ox9 Location -7/Data Miner Parts ------- > --- POWER (3) -------- (None) > --- PROPULSION (3) --- (None) > --- UTILITY (4) ------ Improved Cooling System Large Storage Unit Weapon Cycler > --- WEAPON (3) ------- Heavy Particle Gun Gatling Laser > --- INVENTORY (15) --- Compact Wheel Compact Wheel Compact Wheel Improved Heat Sink Cooling System Coolant Injector High-capacity Matter Pod (0) Weapon Cycler Heavy Laser Gatling Laser Peak State ------------ > --- POWER ------------ Enhanced Nuclear Core Enhanced Nuclear Core Micro Nuclear Core > --- PROPULSION ------- Improved Titanium Leg Improved Titanium Leg Improved Titanium Leg > --- UTILITY ---------- Large Storage Unit Advanced Visual Processing Unit Improved Targeting Computer High-powered Tractor Beam > --- WEAPON ----------- Heavy Particle Gun Greatsword > --- INVENTORY -------- Improved Titanium Leg Improved Cooling System High-capacity Matter Pod Heavy Particle Gun Heavy Particle Gun Rocket Launcher Heavy Rocket Launcher Maul Greatsword [Rating: 50] Favorites ----------- Power Light Ion Engine Engine Light Ion Engine Power Core Enhanced Nuclear Core Propulsion Improved Titanium Leg Treads Light Treads Leg Improved Titanium Leg Wheel Compact Wheel Flight Unit VTOL Module Utility Large Storage Unit Device Improved Cooling System Storage Large Storage Unit Processor Improved Targeting Computer Protection Improved Light Armor Plating Weapon Gatling Laser Energy Gun Gatling Laser Ballistic Gun Improved Assault Rifle Launcher Rocket Launcher Slashing Weapon Greatsword Build | -11 -10 -9 -9 -8 -7 -7 -7 -7 ------- Run | Yrd Mat Mat Min Mat Fac Low Low Dat Slots Evolved 6 | . . 2 . 2 2 . . . Power 2 | . . 2 . . . . . . Propulsion 1 | . . . . 1 . . . . Utility 2 | . . . . 1 1 . . . Weapon 1 | . . . . . 1 . . . Parts Attached 59 | 2 . 2 . 8 38 1 1 7 Power 7 | . . . . . 7 . . . Engine 3 | . . . . . 3 . . . Core 4 | . . . . . 4 . . . Reactor . | . . . . . . . . . Propulsion 22 | 2 . . . 5 13 1 . 1 Treads 2 | 2 . . . . . . . . Leg 6 | . . . . 3 3 . . . Wheel 12 | . . . . . 10 1 . 1 Hover . | . . . . . . . . . Flight 2 | . . . . 2 . . . . Utility 16 | . . 2 . 2 8 . 1 3 Device 9 | . . 1 . . 5 . 1 2 Storage 2 | . . . . 1 1 . . . Processor 2 | . . . . 1 1 . . . Hackware . | . . . . . . . . . Protection 3 | . . 1 . . 1 . . 1 Artifact . | . . . . . . . . . Weapon 14 | . . . . 1 10 . . 3 Energy Gun 8 | . . . . . 6 . . 2 Energy Cannon . | . . . . . . . . . Ballistic Gun 1 | . . . . . 1 . . . Ballistic Cannon . | . . . . . . . . . Launcher 2 | . . . . . 1 . . 1 Special Weapon . | . . . . . . . . . Impact Weapon . | . . . . . . . . . Slashing Weapon 3 | . . . . 1 2 . . . Piercing Weapon . | . . . . . . . . . Special Melee Weapon . | . . . . . . . . . Unidentified Prototypes 3 | . . . . . 3 . . . Parts Lost 30 | . . 3 . 2 14 1 2 8 Power 7 | . . . . . 4 1 1 1 Propulsion 10 | . . 2 . 2 4 . . 2 Utility 6 | . . 1 . . 3 . . 2 Weapon 7 | . . . . . 3 . 1 3 Highest Loss Streak 5 | . . 3 . 2 5 1 1 5 To Critical Strikes 1 | . . . . . . . 1 . Average Backups 11 | . . 2 3 4 11 13 14 12 Power . | . . . . . . . . . Propulsion 2 | . . . . . 2 2 2 2 Utility 3 | . . 1 2 2 2 6 7 6 Weapon 4 | . . . 1 2 6 5 5 3 Tool/Special . | . . . . . . . . . Unused Backups 17 | . . 4 . 1 7 . . 5 Power . | . . . . . . . . . Propulsion 1 | . . . . . 1 . . . Utility 12 | . . 4 . 1 3 . . 4 Weapon 4 | . . . . . 3 . . 1 Tool/Special . | . . . . . . . . . Average Slot Usage (%) 73 | . 28 23 . 13 80 99 83 67 Engine 5 | . . . . . 4 15 7 4 Core 5 | . . . . . 10 6 . . Treads 1 | . 28 19 . . . . . . Leg 7 | . . . . 6 14 . . . Wheel 11 | . . . . . 6 23 23 17 Device 9 | . . 3 . . 6 15 15 14 Storage 6 | . . . . 1 7 7 7 7 Processor 7 | . . . . 3 10 7 7 4 Energy Gun 12 | . . . . . 9 23 22 14 Slashing Weapon 2 | . . . . 1 5 . . . Peak Build Rating 50 | 2 2 4 . 26 50 34 32 36 Average Rating 30 | 1 2 2 . 6 38 33 30 30 On Entrance 13 | . 2 2 . . 23 34 32 27 Avg Prop Armor Cover (%) 33 | 41 41 38 . 37 8 . . 14 Naked Turns 99 | . . 2 46 51 . . . . Heaviest Build 51 | . . 5 . 25 51 46 41 40 Greatest Support 60 | 3 3 3 3 60 60 42 42 42 Greatest Overweight (x) 2 | . . 1 . . 2 1 . 2 Average Overweight (x) . | . . . . . . . . . Largest Inventory Capacity 15 | 5 5 5 5 15 15 15 15 15 Average Capacity 13 | 5 5 5 5 6 15 15 15 15 Most Carried 15 | . 1 5 4 10 15 15 15 15 Average Carried 12 | . . 2 3 5 12 14 15 12 Final Capacity 15 | 5 5 5 5 15 15 15 15 15 Final Carried 15 | . 1 3 4 10 15 15 15 10 Class Distribution -------------------- 44% | Mutant 43% | Scavenger-Gunner 7% | Scavenger-Mutant 3% | Gladiator Dominant Class ---------------- Mutant | -10/Materials Mutant | -9/Materials Mutant | -9/Mines Mutant | -8/Materials Mutant | -7/Factory Scavenger-Gunner | -7/Lower Caves Scavenger-Gunner | -7/Lower Caves Mutant | -7/Data Miner Resources | -11 -10 -9 -9 -8 -7 -7 -7 -7 ----------- Run | Yrd Mat Mat Min Mat Fac Low Low Dat Matter Collected 1261 | 211 9 . . . 781 27 33 200 Remotely 467 | . . . . . 467 . . . Salvage Created 1965 | . . . . . 1722 49 194 . Parts 77 | . . . . . 74 1 2 . Haulers Intercepted . | . . . . . . . . . Recyclers Shooed 3 | . . . . . 3 . . . Parts Field Recycled . | . . . . . . . . . Retrieved Matter . | . . . . . . . . . Parts Self-Destructed 2 | . . . . . . . 2 . Prevented . | . . . . . . . . . Parts Restored . | . . . . . . . . . Kills | -11 -10 -9 -9 -8 -7 -7 -7 -7 ------- Run | Yrd Mat Mat Min Mat Fac Low Low Dat Combat Hostiles Destroyed 26 | . . . . . 18 1 4 3 Melee 16 | . . . . . 16 . . . Guns 4 | . . . . . 1 . 3 . AOE 4 | . . . . . 1 . . 3 Classes Destroyed 10 | . . . . . 7 1 2 . Worker 9 | . . . . . 9 . . . Tunneler 2 | . . . . . 2 . . . Recycler 11 | . . . . . 11 . . . Minesweeper 1 | . . . . . . . 1 . Swarmer 7 | . . . . . 6 . 1 . Grunt 9 | . . . . . 8 . 1 . Brawler 1 | . . . . . . . 1 . Sentry 3 | . . . . . 2 . 1 . Programmer 2 | . . . . . 2 . . . Behemoth 1 | . . . . . . 1 . . Enhanced Grunt 3 | . . . . . . . . 3 Best Kill Streak 12 | . . . . . 12 1 3 3 Combat Bots Only 4 | . . . . . 4 1 3 3 Max Kills in Single Turn 2 | . . . . . 1 1 1 2 Gunslinging . | . . . . . . . . . Exploded 2 | . . . . . 1 . . 2 Melee 1 | . . . . . 1 . . . Uniques/NPCs Destroyed . | . . . . . . . . . Combat | -11 -10 -9 -9 -8 -7 -7 -7 -7 -------- Run | Yrd Mat Mat Min Mat Fac Low Low Dat Hostile Shots Fired 436 | . 52 28 17 36 210 15 43 35 Missed 159 | . 21 10 9 15 63 10 17 14 Hits 277 | . 31 18 8 21 147 5 26 21 Melee 3 | . . . . 3 . . . . Projectile 274 | . 31 18 8 18 147 5 26 21 AOE 3 | . . . 3 . . . . . Critical Strikes 11 | . . . . 4 4 1 2 . Part Disruptions 1 | . . . . . . . . 1 Damage Taken 4803 | . 260 208 157 382 2365 137 340 954 Core 1291 | . 91 87 157 211 542 53 55 95 Absorbed by Shields . | . . . . . . . . . Core Remaining (%) 65 | 100 63 . 39 61 . . . . Volleys Fired 50 | . . . . . 12 4 8 26 Largest 3 | . . . . . 3 3 3 3 Hottest 240 | . . . . . 215 240 240 168 Shots Fired 98 | . . . . . 29 12 22 35 Gun 75 | . . . . . 25 12 22 16 Cannon . | . . . . . . . . . Launcher 23 | . . . . . 4 . . 19 Special . | . . . . . . . . . Kinetic . | . . . . . . . . . Thermal 72 | . . . . . 22 12 22 16 Explosive 23 | . . . . . 4 . . 19 Electromagnetic 3 | . . . . . 3 . . . Robot Hit Streak 22 | . . . . . 16 15 22 4 Robot Miss Streak 4 | . . . . . 1 1 2 4 Penetration Max . | . . . . . . . . . Secondary Targets 1 | . . . . . . . 1 . Max Gunslinging Chain 1 | . . . . . . . 1 . Shots Hit Robots 130 | . . . . . 79 12 19 20 Core Hits 92 | . . 1 . . 40 9 14 28 Critical Kills . | . . . . . . . . . Critical Parts Destroyed . | . . . . . . . . . Critical Strikes 7 | . . . . . 7 . . . Burn 1 | . . . . . 1 . . . Sever 6 | . . . . . 6 . . . Melee Attacks 79 | . . . . . 79 . . . Impact . | . . . . . . . . . Slashing 79 | . . . . . 79 . . . Piercing . | . . . . . . . . . Sneak Attacks 18 | . . . . . 18 . . . Combat Hostiles . | . . . . . . . . . Follow-up Attacks . | . . . . . . . . . Damage Inflicted 7382 | . . 31 . . 4600 405 500 1846 Guns 1405 | . . . . . 369 405 500 131 Cannons . | . . . . . . . . . Explosions 1967 | . . . . . 252 . . 1715 Melee 3979 | . . . . . 3979 . . . Ramming 31 | . . 31 . . . . . . Kinetic . | . . . . . . . . . Thermal 1441 | . . . . . 405 405 500 131 Explosive 1883 | . . . . . 168 . . 1715 Electromagnetic 48 | . . . . . 48 . . . Impact . | . . . . . . . . . Slashing 3979 | . . . . . 3979 . . . Piercing . | . . . . . . . . . Highest Corruption 6 | . . 5 5 . 6 6 6 6 Average Corruption 4 | . . 5 5 . 3 6 6 6 Corruption Purged . | . . . . . . . . . Corruption Blocked . | . . . . . . . . . Effects 43 | . . 1 2 . 13 8 11 8 Message Errors 9 | . . . 1 . 3 . 3 2 Matter Fused 9 | . . . . . 3 4 2 . Heat Flow Errors 5 | . . . . . 3 1 1 . Energy Discharges 5 | . . . . . 2 1 . 2 Parts Rejected 1 | . . . . . . . 1 . Data Loss (minor) 5 | . . 1 . . 1 1 1 1 Data Loss (major) 4 | . . . 1 . . 1 1 1 Misfires 2 | . . . . . 1 . 1 . Weapon Failures 3 | . . . . . . . 1 2 Overload Shots . | . . . . . . . . . Overflow Damage 881 | . . . . . 857 . . 24 Projectiles . | . . . . . . . . . Explosions 35 | . . . . . 11 . . 24 Melee 846 | . . . . . 846 . . . Knockbacks . | . . . . . . . . . Impact . | . . . . . . . . . Kinetic . | . . . . . . . . . Secondary . | . . . . . . . . . Self-Inflicted Damage 109 | . . 15 . . 94 . . . Shots 3 | . . . . . 3 . . . Rammed 8 | . . 8 . . . . . . Targets Rammed 8 | . . 8 . . . . . . Kicked . | . . . . . . . . . Crushed . | . . . . . . . . . Highest Temperature 227 | . . . . 5 227 93 166 208 Average Temperature 42 | . . . . 5 37 37 34 58 Received Heat Transfer 1071 | . 24 69 . 216 684 12 66 . Siege Activations . | . . . . . . . . . Martial Activations . | . . . . . . . . . Shielding Activations . | . . . . . . . . . Robots Disrupted . | . . . . . . . . . Combat Hostiles . | . . . . . . . . . Robots Corrupted . | . . . . . . . . . Combat Hostiles . | . . . . . . . . . Parts Fried . | . . . . . . . . . Impact Corruptions . | . . . . . . . . . Robots Melted 2 | . . . . . . 1 1 . Combat Hostiles 2 | . . . . . . 1 1 . Parts Melted 7 | . . . . . 2 1 4 . Heat Transferred 3231 | . . . . . 870 825 1125 411 Parts Sabotaged . | . . . . . . . . . Parts Stolen . | . . . . . . . . . Parts Stripped . | . . . . . . . . . Power Chain Reactions 1 | . . . . . 1 . . . Alert | -11 -10 -9 -9 -8 -7 -7 -7 -7 ------- Run | Yrd Mat Mat Min Mat Fac Low Low Dat Maximum Alert Level 1 | . . . . . 1 . . . Low Security (%) 73 | 100 100 100 100 100 66 . . . Level 1 26 | . . . . . 33 . . . Level 2 . | . . . . . . . . . Level 3 . | . . . . . . . . . Level 4 . | . . . . . . . . . Level 5 . | . . . . . . . . . High Security . | . . . . . . . . . Max Security . | . . . . . . . . . Peak Influence 260 | . 35 10 . 60 260 . . . Initial 22 | . . 10 . . 22 . . . Average 97 | . 8 2 . 8 123 . . . Influence Increases 963 | . 45 15 . 75 698 30 100 . Destroy 0b10 Robot/C 460 | . . . . . 360 20 80 . Destroy 0b10 Robot/NC 115 | . . . . . 110 . 5 . Destroy Leader 100 | . . . . . 90 10 . . Successful Hack 12 | . . . . . 12 . . . Disable Machine 60 | . . . . . 60 . . . Destroy Structure 21 | . . . . . 21 . . . Lose Combat Pursuer 195 | . 45 15 . 75 45 . 15 . Influence Decreases 963 | . 20 40 . 25 528 240 73 37 Entered New Map 164 | . . 15 . . 28 82 2 37 Time Decay 636 | . 20 20 . 15 370 158 53 . Lost Part 163 | . . 5 . 10 130 . 18 . Squads Dispatched 8 | . 1 . . 1 5 . 1 . Investigation 1 | . . . . . 1 . . . Extermination 3 | . . . . . 3 . . . Reinforcement 2 | . 1 . . 1 . . . . Assault 1 | . . . . . . . 1 . Garrison 1 | . . . . . 1 . . . Intercept . | . . . . . . . . . Searches Triggered . | . . . . . . . . . Construction Impeded . | . . . . . . . . . Haulers Reinforced . | . . . . . . . . . Active Scanning Responses . | . . . . . . . . . Cargo Convoy Interrupts . | . . . . . . . . . Stealth | -11 -10 -9 -9 -8 -7 -7 -7 -7 --------- Run | Yrd Mat Mat Min Mat Fac Low Low Dat Distress Signals 4 | . 1 1 . 1 1 . . . Communications Jammed . | . . . . . . . . . Distress Signals . | . . . . . . . . . Times Spotted 96 | . 14 12 14 12 30 1 9 4 Peak Tracking Total 26 | . 10 11 26 12 6 1 7 3 Tactical Retreats 8 | . 2 1 . 2 2 . 1 . Traps | -11 -10 -9 -9 -8 -7 -7 -7 -7 ------- Run | Yrd Mat Mat Min Mat Fac Low Low Dat Traps Triggered 2 | . . . . . 2 . . . Indirectly . | . . . . . . . . . Trap Hack Attempts . | . . . . . . . . . Triggered . | . . . . . . . . . Disarmed . | . . . . . . . . . Reprogrammed . | . . . . . . . . . Reused . | . . . . . . . . . Traps Extracted . | . . . . . . . . . Installed . | . . . . . . . . . Triggered . | . . . . . . . . . Machines | -11 -10 -9 -9 -8 -7 -7 -7 -7 ---------- Run | Yrd Mat Mat Min Mat Fac Low Low Dat Machines Disabled 4 | . . . . . 4 . . . Max in Single Turn 4 | . . . . . 4 . . . Garrison Access 1 | . . . . . 1 . . . Machines Repaired . | . . . . . . . . . Machines Dismantled . | . . . . . . . . . Machines Sabotaged . | . . . . . . . . . Overloaded Fab Kills . | . . . . . . . . . Hacking | -11 -10 -9 -9 -8 -7 -7 -7 -7 --------- Run | Yrd Mat Mat Min Mat Fac Low Low Dat Machines Accessed 8 | . . . . . 4 . . 4 Terminals . | . . . . . . . . . Fabricators 1 | . . . . . 1 . . . Repair Stations . | . . . . . . . . . Recycling Units 1 | . . . . . 1 . . . Scanalyzers 1 | . . . . . 1 . . . Garrison Access 1 | . . . . . 1 . . . Total Hacks 38 | . . . . . 7 . . 31 Successful 33 | . . . . . 2 . . 31 Failed 5 | . . . . . 5 . . . Catastrophic . | . . . . . . . . . Database Lockouts . | . . . . . . . . . Manual 2 | . . . . . 2 . . . Terminals . | . . . . . . . . . Fabricators 2 | . . . . . 2 . . . Repair Stations . | . . . . . . . . . Recycling Units 1 | . . . . . 1 . . . Scanalyzers 3 | . . . . . 3 . . . Garrison Access 1 | . . . . . 1 . . . Terminal Hacks 31 | . . . . . . . . 31 Record 11 | . . . . . . . . 11 Part Schematic 12 | . . . . . . . . 12 Robot Schematic 5 | . . . . . . . . 5 Prototype ID Bank 3 | . . . . . . . . 3 Fabricator Hacks . | . . . . . . . . . Repair Station Hacks . | . . . . . . . . . Recycling Unit Hacks . | . . . . . . . . . Scanalyzer 1 | . . . . . 1 . . . Retrieve Study 1 | . . . . . 1 . . . Garrison Access Hacks 1 | . . . . . 1 . . . Seal Access 1 | . . . . . 1 . . . Unauthorized Hacks . | . . . . . . . . . Terminals . | . . . . . . . . . Fabricators . | . . . . . . . . . Repair Stations . | . . . . . . . . . Recycling Units . | . . . . . . . . . Scanalyzers . | . . . . . . . . . Garrison Access . | . . . . . . . . . Data Cores Recovered . | . . . . . . . . . Used . | . . . . . . . . . Hacking Detections 3 | . . . . . 3 . . . Full Trace Events . | . . . . . . . . . Feedback Events . | . . . . . . . . . Feedback Blocked . | . . . . . . . . . Robot Schematics Acquired 5 | . . . . . . . . 5 Robots Built . | . . . . . . . . . Authchips . | . . . . . . . . . Time . | . . . . . . . . . Total Robot Build Rating . | . . . . . . . . . Part Schematics Acquired 12 | . . . . . . . . 12 Parts Built . | . . . . . . . . . Authchips . | . . . . . . . . . Time . | . . . . . . . . . Total Part Build Rating . | . . . . . . . . . Part Studies Acquired 1 | . . . . . 1 . . . Parts Repaired . | . . . . . . . . . Time . | . . . . . . . . . Parts Recycled . | . . . . . . . . . Recycled Matter . | . . . . . . . . . Retrieved Matter . | . . . . . . . . . Retrieved Components . | . . . . . . . . . Parts Scanalyzed . | . . . . . . . . . Part Schematics Acquired . | . . . . . . . . . Parts Damaged . | . . . . . . . . . Bothacking | -11 -10 -9 -9 -8 -7 -7 -7 -7 ------------ Run | Yrd Mat Mat Min Mat Fac Low Low Dat Used RIF Installer . | . . . . . . . . . Robots Hacked . | . . . . . . . . . Non-combat . | . . . . . . . . . Combat . | . . . . . . . . . Robot Hacks Applied . | . . . . . . . . . Relay Couplers Released . | . . . . . . . . . Fabnet Peak Effective % . | . . . . . . . . . Robots Rewired . | . . . . . . . . . Allies Hacked . | . . . . . . . . . Hacks Repelled . | . . . . . . . . . Allies | -11 -10 -9 -9 -8 -7 -7 -7 -7 -------- Run | Yrd Mat Mat Min Mat Fac Low Low Dat Total Allies . | . . . . . . . . . Largest Group . | . . . . . . . . . Highest-Rated Group . | . . . . . . . . . Highest-Rated Ally . | . . . . . . . . . Total Orders . | . . . . . . . . . Ally Attacks . | . . . . . . . . . Total Damage . | . . . . . . . . . Kills . | . . . . . . . . . Allies Corrupted . | . . . . . . . . . Allies Melted . | . . . . . . . . . Intel | -11 -10 -9 -9 -8 -7 -7 -7 -7 ------- Run | Yrd Mat Mat Min Mat Fac Low Low Dat Active Infowar (turns) 767 | . . 27 . 46 694 . . . Optics 740 | . . . . 46 694 . . . Structural 27 | . . 27 . . . . . . Robot Analysis Total 154 | . . . . . . . . 154 Derelict Logs Recovered 2 | . . . . . . 1 1 . Drone Launches . | . . . . . . . . . Drone Recoveries . | . . . . . . . . . Exploration | -11 -10 -9 -9 -8 -7 -7 -7 -7 ------------- Run | Yrd Mat Mat Min Mat Fac Low Low Dat Turns Passed 2460 | 18 62 94 46 111 1165 329 418 217 Spaces Moved 2019 | 30 121 143 85 180 626 308 403 123 Core 516 | 30 121 143 85 137 . . . . Treads . | . . . . . . . . . Legs 406 | . . . . 10 396 . . . Wheels 1064 | . . . . . 230 308 403 123 Hover . | . . . . . . . . . Flight 33 | . . . . 33 . . . . Fastest Speed 35 | 50 50 50 50 35 95 93 93 90 Average Speed 90 | 50 50 50 50 51 119 100 93 93 Slowest Speed 270 | 50 50 100 50 130 270 101 93 110 Overloaded Moves . | . . . . . . . . . Propulsion Burnouts . | . . . . . . . . . Robots Hopped 2 | . . . . 2 . . . . Potential Cave-ins . | . . . . . . . . . Cave-ins Triggered 1 | . . . . . 1 . . . Exploration Rate (%) 36 | 4 31 19 27 32 22 51 61 77 Regions Visited 8 Branch Regions 4 Pre-discovered Areas 30 | . . . . . . . . 30 Known Exits Taken . | . . . . . . . . . Unknown Exits Taken 8 | 1 1 1 1 1 1 1 1 . Scrap Searched 6 | . . . . . . 2 4 . Spaces Dug 11 | . . . . . 11 . . . Terrain Destroyed 60 | . . . . . 19 . . 41 Melee 5 | . . . . . 5 . . . Projectile 1 | . . . . . . . . 1 AOE 54 | . . . . . 14 . . 40 Terrain Rammed . | . . . . . . . . . Walls Destroyed . | . . . . . . . . . Machines Disabled . | . . . . . . . . . Actions | -11 -10 -9 -9 -8 -7 -7 -7 -7 --------- Run | Yrd Mat Mat Min Mat Fac Low Low Dat Total 2403 | 31 121 165 87 193 862 317 425 202 Wait 87 | . . 2 2 . 47 . 10 26 Move 2008 | 29 120 143 84 175 625 307 402 123 Hop 2 | . . . . 2 . . . . Pick Up 53 | . 1 6 1 6 31 2 1 5 Fast Attach 33 | 2 . 2 . 7 18 1 1 2 Attach 25 | . . . . 1 15 . . 9 Detach 4 | . . . . . 2 . . 2 Swap 13 | . . . . . 10 . 1 2 Drop 42 | . . 5 . 2 23 3 2 7 Fire 50 | . . . . . 12 4 8 26 Melee 79 | . . . . . 79 . . . Ram 7 | . . 7 . . . . . . Kick . | . . . . . . . . . Crush . | . . . . . . . . . Escape Stasis . | . . . . . . . . . Rewire . | . . . . . . . . . Trap . | . . . . . . . . . Miscellaneous . | . . . . . . . . . Route ------- -11/Scrapyard -10/Materials -9/Materials -9/Mines -8/Materials -7/Factory -7/Lower Caves -7/Lower Caves -7/Data Miner (discovered 1 exit: [*Pro]) History --------- Turn | Location | Event 5 | -11/Scrapyard | Discovered new exit (range 16) 19 | -11/Scrapyard | Entered Materials 73 | -10/Materials | Discovered new exit (range 16) 81 | -10/Materials | Entered another Materials area 81 | -9/Materials | Evolved 2 slots: Power x2 170 | -9/Materials | Discovered new exit (range 11) 175 | -9/Materials | Entered Mines 183 | -9/Mines | Received a Rocket Launcher from a helpful Derelict 204 | -9/Mines | Lost 3 parts (2n1u) 209 | -9/Mines | Assembled infested the area 214 | -9/Mines | Assisted by a Guerilla fighting off Assembled 215 | -9/Mines | Core integrity fell below 50% 215 | -9/Mines | Discovered new exit (range 12) 221 | -9/Mines | Entered Materials 221 | -8/Materials | Evolved 2 slots: Propulsion x1, Utility x1 300 | -8/Materials | Discovered new exit (range 11) 332 | -8/Materials | Entered Factory 332 | -7/Factory | Evolved 2 slots: Utility x1, Weapon x1 354 | -7/Factory | Build established: Mutant 801 | -7/Factory | Garrison activated, responded to threat 944 | -7/Factory | Lost 5 parts (2p2n1w) 1026 | -7/Factory | Crushed by falling debris 1063 | -7/Factory | Core integrity fell below 50% 1105 | -7/Factory | Lost 3 parts (1p1n1w) 1481 | -7/Factory | Discovered new exit (range 7) 1497 | -7/Factory | Entered Lower Caves 1513 | -7/Lower Caves | Build established: Scavenger-Gunner 1522 | -7/Lower Caves | Learned location of 1 exit from Proximity Caves 1777 | -7/Lower Caves | Spotted B-75 Beast 1785 | -7/Lower Caves | Core integrity fell below 20% 1791 | -7/Lower Caves | Destroyed B-75 Beast 1818 | -7/Lower Caves | Discovered new exit (range 10) 1826 | -7/Lower Caves | Entered another Lower Caves area 1828 | -7/Lower Caves | Attracted the attention of an 0b10 checkpoint 1980 | -7/Lower Caves | Learned 8 Factory zone layouts 2094 | -7/Lower Caves | Encountered a Warlord checkpoint 2171 | -7/Lower Caves | Attracted the attention of an 0b10 outpost 2234 | -7/Lower Caves | Discovered new exit (range 12) 2244 | -7/Lower Caves | Entered Data Miner 2244 | -7/Data Miner | Discovered new exit (range 6) 2262 | -7/Data Miner | Met Data Miner 2286 | -7/Data Miner | Acquired the access code to Warlord's prototype stash 2286 | -7/Data Miner | Learned location of Section 7 (-3) 2295 | -7/Data Miner | Received God Mode back door access code from Data Miner 2360 | -7/Data Miner | Interfaced with the Data Conduit 2417 | -7/Data Miner | Lost 3 parts (1p2w) 2461 | -7/Data Miner | Destroyed by Enhanced Grunt with Neutron Cannon Last Messages --------------- 02388_ Destroyed Adv. Heat Sink. 02391_ Destroyed Adv. Particle Charger. 02393_ Enhanced Grunt destroyed. 02396_ Acquired Imp. Heat Sink. 02397_ Dropped Hcp. Matter Pod. 02398_ Extracted 200 matter. 02399_ Acquired Hcp. Matter Pod. 02403_ Acquired Imp. Cooling System. 02404_ The unstable cave ceiling collapses. 02405_ MG3S>W7MWOGK:H9MVTTZ2ZBVPT1BRAJP 02409_ The unstable cave ceiling collapses. 02426_ BGVCUSW:J7Q4 02448_ Wheel destroyed. 02451_ System corrupted: Energy discharge (-3). 02453_ The unstable cave ceiling collapses. 02458_ Arm. Huge Wheel destroyed. Map ----- +----------------------------------------------------+ | | | | | | | | | | | | | | | | | | | | | | | | | | | | | | | | | | | ?????????????????????????????????????????? | | ?????????????????????????????????????????? | | ?????????????????????????????????????????? | | ???????????????????###?####??????????????? | | ??????????????????# # ???????????####? | | ?????#############; # ? ###?????### #? | | ?????""""""""""""" # ### #????## #? | | ????""""""""" "" ###### < ##? | | ????""""" " @ ## | | ????""""" | | ???""""" g | | ???"""""" | | ???""""" | | ???"""""" "" """"""""""## | | ???"""""" # ############? | | ????""""""" # ##???????????? | | ????#"""""""" # ####????????????? | | ?????#######"## # ####???????????????? | | ???????????#"### "###??????????????????? | | ???????????#"### "#????????????????????? | | ???????????#"?# "#????????????????????? | | ?????????????## "#????????????????????? | | ?????????????# "#????????????????????? | | ?????????????### "#????????????????????? | | ???????????????# "##???????????????????? | | ??????????????## ""#???????????????????? | | ?????????????## ""#???????????????????? | | ??????????##"#"X ""#???????????????????? | | ??????????""""" "####????????????????? | | ??????????""""" X"""""????????????????? | | ??????????##"#"X "##"#????????????????? | | ???????????#?## X""""#????????????????? | | ??????????????## "##"#????????????????? | +----------------------------------------------------+ Best States ------------- Heat Dissipation 75 Energy Generation 39 Energy Capacity 550 Matter Stores 300 Matter Capacity 300 Sight Range 20 Terrain Scan Density 10 Armor Coverage 225 Weapon Cycling 30 Evasion (%) 63 Targeting Accuracy 6 Item Schematics ----------------- Combat Drone Bay | -7/Data Miner | Free Lgt. Regenerative Plating | -7/Data Miner | Free Cld. Aerolev Unit | -7/Data Miner | Free Exp. Propulsion Shielding | -7/Data Miner | Free Scatter Rocket Array | -7/Data Miner | Free Thunder Leg | -7/Data Miner | Free Imp. Weapon Cycler | -7/Data Miner | Free Adv. Heat Sink | -7/Data Miner | Free Mass Driver | -7/Data Miner | Free Neutrino Core | -7/Data Miner | Free Adv. Cryofiber Web | -7/Data Miner | Free Field Propulsion Array | -7/Data Miner | Free Robot Schematics ------------------ X-57 Shotgunner | -7/Data Miner | Free A-15 Conveyor | -7/Data Miner | Free L-41 Fighter | -7/Data Miner | Free R-10 Processor | -7/Data Miner | Free M-22 Extractor | -7/Data Miner | Free Fabricated ------------ Nothing Repaired ---------- Nothing Studied --------- Imp. Titanium Leg | -7/Factory | Hacked Alien Tech Used ----------------- None Achievements -------------- None Challenges ------------ None Game ------ Seed WarlordMatterHoverbase Manual? 0 Play Time 00:21:04 Cumulative 363.1 hours Start 2025.11.04 @ 03:39:10 End 2025.11.04 @ 03:58:59 Sessions 1 Manual Loads 0 Difficulty Rogue Special Mode None Game No. 320 Rogue 320 Adventurer 0 Explorer 0 Win Type - Total 2 Types 1/1/0/0/0/0/0/0/0/0 Lore% 83 Gallery% 82 Achievement% 59 Wizard Run 0 Options --------- Layout 1 ASCII 0 Keyboard 0 Movement Numpad Keybinds 0 Fullscreen 1 Font 24/Smallcaps Map View 50x35 Zoom Use 0% Tactical HUD 1 Map Filters NONE Filters NONE Steam 1 RUN: 1e14b5a9-3130-465a-99af-3057ecfc7d3a